fUSD/lending_fUSD_20241122
["ID","MTS","AMOUNT","RATE_DAILY","PERIOD"]
[343024241,1732293043011,-500.0,0.0009315,120]
[343024242,1732293043021,-500.0,0.0009315,120]
[343024243,1732293043030,-500.0,0.0009315,120]
[343024244,1732293043040,-500.0,0.0009315,120]
[343024245,1732293043052,-500.0,0.0009315,120]
[343024246,1732293043061,-389.93010049,0.0009315,120]
[343024247,1732293043070,-4999.0,0.000933,120]
[343024248,1732293043079,-170.03,0.00093777,2]
[343024249,1732293043088,-157.64,0.0009389,120]
[343024250,1732293043098,-50000.0,0.000939,120]
[343024251,1732293043107,-604.17,0.00094779,120]
[343024252,1732293043115,-537.68,0.00094779,120]
[343024253,1732293043125,-4048.97,0.00094779,120]
[343024254,1732293043135,-500.0,0.00094779,120]
[343024255,1732293043144,-500.0,0.00094779,120]
[343024256,1732293043153,-500.0,0.00094779,120]
[343024257,1732293043162,-189.21,0.00094779,120]
[343024258,1732293043171,-767.48,0.00094779,120]
[343024259,1732293043180,-634.53,0.00094779,120]
[343024260,1732293043189,-617.11,0.00094779,120]
[343024261,1732293043199,-500.0,0.00094789,120]
[343024262,1732293043208,-500.0,0.00094789,120]
[343024263,1732293043217,-500.0,0.00094789,120]
[343024264,1732293043228,-500.0,0.00094789,120]
[343024265,1732293043237,-500.0,0.00094789,120]
[343024266,1732293043246,-500.0,0.00094789,120]
[343024267,1732293043255,-500.0,0.00094789,120]
[343024268,1732293043264,-500.0,0.00094789,120]
[343024269,1732293043277,-500.0,0.00094789,120]
[343024270,1732293043287,-604.17,0.00094789,120]
[343024271,1732293043309,-537.68,0.00094789,120]
[343024275,1732293043319,-4048.97,0.00094789,120]
[343024279,1732293043329,-644.32,0.00094789,120]
[343024282,1732293043339,-500.0,0.00094789,120]
[343024284,1732293043349,-500.0,0.00094789,120]
[343024286,1732293043359,-767.48,0.00094789,120]
[343024288,1732293043369,-500.0,0.00094789,120]
[343024290,1732293043379,-500.0,0.00094789,120]
[343024292,1732293043388,-617.11,0.00094789,120]
[343024294,1732293043399,-617.11,0.00094789,120]
[343024296,1732293043408,-1000.0,0.0009479,120]
[343024298,1732293043417,-363942.6803,0.0009479,120]
[343024299,1732293043427,-5972.8212,0.0009479,120]
[343024300,1732293043436,-12276.85906162,0.00094862,120]
[343024301,1732293043446,-16964.51575483,0.00094862,120]
[343024302,1732293043552,-640.33,0.00094889,120]
[343024303,1732293043562,-500.0,0.00094889,120]
[343024304,1732293043575,-52045.5829,0.0009489,30]
[343024305,1732293043585,-300.0,0.000949,34]
[343024306,1732293043594,-1053.31593425,0.00094962,120]
[343024307,1732293043603,-1085.43486777,0.00094962,120]
[343024308,1732293043613,-544.46,0.00094999,120]
[343024309,1732293043622,-500.0,0.00094999,120]
[343024310,1732293043631,-154.21442102,0.00094999,120]
[343024311,1732293043641,-498.46607,0.00094999,120]
[343024312,1732293043650,-500.0,0.00094999,120]
[343024313,1732293043660,-617.11,0.00094999,120]
[343024314,1732293043670,-617.11,0.00094999,120]
[343024315,1732293043679,-617.11,0.00094999,120]
[343024316,1732293043688,-617.11,0.00094999,120]
[343024317,1732293043697,-617.23516401,0.00094999,120]
[343024318,1732293043707,-451852.98843233,0.00095,120]
[343024319,1732293043716,-25000.0,0.000952,120]
[343024320,1732293043726,-651.562,0.0009538,120]
[343024321,1732293043735,-689.764,0.0009542,120]
[343024322,1732293043744,-544.46,0.00095426,120]
[343024323,1732293043754,-500.0,0.00095426,120]
[343024324,1732293043764,-500.0,0.00095426,120]
[343024325,1732293043773,-351.747171,0.00095432,120]
[343024326,1732293043782,-544.46,0.00095579,120]
[343024327,1732293043791,-500.0,0.00095579,120]
[343024328,1732293043806,-500.0,0.00095579,120]
[343024329,1732293043815,-544.46,0.00095679,120]
[343024330,1732293043825,-544.46,0.00095679,120]
[343024331,1732293043834,-500.0,0.00095679,120]
[343024332,1732293043843,-543.56972754,0.00095679,120]
[343024333,1732293043852,-500.0,0.00095679,120]
[343024334,1732293043861,-500.0,0.00095679,120]
[343024335,1732293043870,-544.46,0.00095689,120]
[343024336,1732293043880,-500.0,0.00095689,120]
[343024337,1732293043890,-153.0,0.00095731,120]
[343024338,1732293043900,-153.0,0.00095731,120]
[343024339,1732293043909,-153.0,0.00095731,120]
[343024340,1732293043919,-544.46,0.00095789,120]
[343024341,1732293043927,-500.0,0.00095789,120]
[343024342,1732293043937,-604.17,0.00095889,120]
[343024343,1732293043946,-537.68,0.00095889,120]
[343024344,1732293043955,-4048.97,0.00095889,120]
[343024345,1732293043964,-500.0,0.00095889,120]
[343024346,1732293043975,-500.0,0.00095889,120]
[343024347,1732293043985,-767.48,0.00095889,120]
[343024348,1732293043995,-3539.95,0.0009589,120]
[343024349,1732293044004,-3539.95,0.0009589,120]
[343024350,1732293044012,-3539.95,0.0009589,120]
[343024351,1732293044023,-3539.95,0.0009589,120]
[343024352,1732293044032,-3539.95,0.0009589,120]
[343024353,1732293044041,-3539.95,0.0009589,120]
[343024354,1732293044055,-3539.95,0.0009589,120]
[343024355,1732293044064,-4022.0,0.0009594,117]
[343024356,1732293044073,-3539.95,0.00095978,120]
[343024357,1732293044082,-544.46,0.00095978,120]
[343024358,1732293044091,-500.0,0.00095978,120]
[343024359,1732293044100,-3539.95,0.00095989,120]
[343024360,1732293044110,-3539.95,0.00095989,120]
[343024361,1732293044119,-544.46,0.00095989,120]
[343024362,1732293044130,-544.46,0.00095989,120]
[343024363,1732293044139,-500.0,0.00095989,120]
[343024364,1732293044150,-500.0,0.00095989,120]
[343024365,1732293044159,-8296.45497724,0.00095999,120]
[343024366,1732293044168,-3539.95,0.00095999,120]
[343024367,1732293044177,-544.46,0.00095999,120]
[343024368,1732293044186,-500.0,0.00095999,120]
[343024369,1732293044196,-10000.0,0.00096,8]
[343024370,1732293044205,-12499.99,0.00096,120]
[343024371,1732293044214,-2000.0,0.00096,120]
[343024372,1732293044223,-500.0,0.00096,120]
[343024373,1732293044232,-324.87388051,0.00096021,120]
[343024374,1732293044242,-170.03,0.00096041,2]
[343024375,1732293044252,-200.0,0.00096069,120]
[343024376,1732293044262,-200.0,0.0009607,120]
[343024377,1732293044271,-324.87388051,0.00096111,120]
[343024378,1732293044280,-324.87388051,0.00096202,120]
[343024379,1732293044291,-500.0,0.00096252,120]
[343024380,1732293044303,-500.0,0.00096252,120]
[343024381,1732293044313,-203.6023938,0.00096252,120]
[343024382,1732293044322,-3539.95,0.00096252,120]
[343024383,1732293044331,-584.32,0.00096252,120]
[343024384,1732293044341,-544.46,0.00096252,120]
[343024385,1732293044351,-500.0,0.00096252,120]
[343024386,1732293044360,-324.87388051,0.00096287,120]
[343024387,1732293044370,-2767.0,0.000963,61]
[343024388,1732293044380,-324.87388051,0.00096309,120]
[343024389,1732293044389,-193.57981546,0.00096343,120]
[343024390,1732293044399,-507.74681056,0.00096343,120]
[343024391,1732293044408,-584.32,0.00096343,120]
[343024392,1732293044418,-584.32,0.00096343,120]
[343024393,1732293044427,-3539.95,0.00096353,120]
[343024394,1732293044437,-3539.95,0.00096353,120]
[343024395,1732293044446,-584.32,0.00096353,120]
[343024396,1732293044455,-584.32,0.00096353,120]
[343024397,1732293044465,-584.32,0.00096353,120]
[343024398,1732293044474,-544.46,0.00096353,120]
[343024399,1732293044484,-544.46,0.00096353,120]
[343024400,1732293044493,-500.0,0.00096353,120]
[343024401,1732293044503,-500.0,0.00096353,120]
[343024402,1732293044512,-3539.95,0.00096383,120]
[343024403,1732293044523,-544.46,0.00096383,120]
[343024404,1732293044532,-500.0,0.00096383,120]
[343024405,1732293044542,-200.0,0.00096473,120]
[343024406,1732293044557,-584.32,0.00096485,120]
[343024407,1732293044567,-500.0,0.00096499,120]
[343024408,1732293044576,-191.88,0.00096499,120]
[343024409,1732293044585,-168.0,0.00096499,120]
[343024410,1732293044595,-500.0,0.00096499,120]
[343024411,1732293044603,-500.0,0.00096499,120]
[343024412,1732293044613,-500.0,0.00096499,120]
[343024413,1732293044623,-396.17,0.00096499,120]
[343024414,1732293044632,-500.0,0.00096499,120]
[343024415,1732293044641,-500.0,0.00096499,120]
[343024416,1732293044652,-500.0,0.00096499,120]
[343024417,1732293044662,-609.97,0.00096499,120]
[343024418,1732293044671,-500.0,0.00096499,120]
[343024419,1732293044680,-500.0,0.00096499,120]
[343024420,1732293044690,-500.0,0.00096499,120]
[343024421,1732293044699,-500.0,0.00096499,120]
[343024422,1732293044708,-500.0,0.00096499,120]
[343024423,1732293044717,-253.04,0.00096499,120]
[343024424,1732293044727,-500.0,0.00096499,120]
[343024425,1732293044737,-500.0,0.00096499,120]
[343024426,1732293044746,-500.0,0.00096499,120]
[343024427,1732293044756,-500.0,0.00096499,120]
[343024428,1732293044765,-500.0,0.00096499,120]
[343024429,1732293044774,-500.0,0.00096499,120]
[343024430,1732293044784,-500.0,0.00096499,120]
[343024431,1732293044793,-500.0,0.00096499,120]
[343024432,1732293044806,-500.0,0.00096499,120]
[343024433,1732293044815,-500.0,0.00096499,120]
[343024434,1732293044825,-500.0,0.00096499,120]
[343024435,1732293044834,-500.0,0.00096499,120]
[343024436,1732293044843,-1000.0,0.00096499,120]
[343024437,1732293044852,-500.0,0.00096499,120]
[343024438,1732293044862,-500.0,0.00096499,120]
[343024439,1732293044873,-500.0,0.00096499,120]
[343024440,1732293044883,-2171.86,0.00096499,120]
[343024441,1732293044893,-3472.62,0.00096499,120]
[343024442,1732293044903,-1817.91,0.00096499,120]
[343024443,1732293044912,-500.0,0.00096499,120]
[343024444,1732293044922,-500.0,0.00096499,120]
[343024445,1732293044932,-500.0,0.00096499,120]
[343024446,1732293044941,-500.0,0.00096499,120]
[343024447,1732293044951,-500.0,0.00096499,120]
[343024448,1732293044960,-500.0,0.00096499,120]
[343024449,1732293044969,-500.0,0.00096499,120]
[343024450,1732293044978,-1948.77,0.00096499,120]
[343024451,1732293044988,-500.0,0.00096499,120]
[343024452,1732293044998,-500.0,0.00096499,120]
[343024453,1732293045007,-500.0,0.00096499,120]
[343024454,1732293045017,-500.0,0.00096499,120]
[343024455,1732293045027,-500.0,0.00096499,120]
[343024456,1732293045036,-4410.63,0.00096499,120]
[343024457,1732293045048,-500.0,0.00096499,120]
[343024458,1732293045058,-500.0,0.00096499,120]
[343024459,1732293045067,-216.0229552,0.00096499,120]
[343024460,1732293045079,-500.0,0.00096499,120]
[343024461,1732293045088,-500.0,0.00096499,120]
[343024462,1732293045098,-3446.19,0.00096499,120]
[343024463,1732293045107,-545.57884053,0.00096499,120]
[343024464,1732293045116,-500.0,0.00096499,120]
[343024465,1732293045125,-500.0,0.00096499,120]
[343024466,1732293045134,-500.0,0.00096499,120]
[343024467,1732293045143,-500.0,0.00096499,120]
[343024468,1732293045152,-344.56416958,0.00096499,120]
[343024469,1732293045162,-500.0,0.00096499,120]
[343024470,1732293045171,-500.0,0.00096499,120]
[343024471,1732293045180,-393.35,0.00096499,120]
[343024472,1732293045190,-500.0,0.00096499,120]
[343024473,1732293045199,-500.0,0.00096499,120]
[343024474,1732293045208,-500.0,0.00096499,120]
[343024475,1732293045218,-500.0,0.00096499,120]
[343024476,1732293045227,-500.0,0.00096499,120]
[343024477,1732293045237,-500.0,0.00096499,120]
[343024478,1732293045246,-500.0,0.00096499,120]
[343024479,1732293045256,-500.0,0.00096499,120]
[343024480,1732293045266,-124193.726,0.000965,120]
[343024481,1732293045275,-200.0,0.00096577,120]
[343024482,1732293045284,-300.0,0.000967,35]
[343024483,1732293045294,-584.32,0.0009672,120]
[343024484,1732293045307,-604.17,0.00096737,120]
[343024485,1732293045317,-537.68,0.00096737,120]
[343024486,1732293045327,-4048.97,0.00096737,120]
[343024487,1732293045336,-500.0,0.00096737,120]
[343024488,1732293045346,-500.0,0.00096737,120]
[343024489,1732293045356,-767.48,0.00096737,120]
[343024490,1732293045366,-584.32,0.00096738,120]
[343024491,1732293045375,-300.0,0.000968,35]
[343024492,1732293045385,-58150.55405463,0.000969,120]
[343024493,1732293045395,-173.65712675,0.000969,15]
[343024494,1732293045404,-300.0,0.000969,35]
[343024495,1732293045414,-1921.28014924,0.000969,2]
[343024496,1732293045424,-357.69762418,0.000969,2]
[343024497,1732293045434,-584.32,0.00096919,120]
[343024498,1732293045444,-3539.95,0.00096999,120]
[343024499,1732293045453,-3539.95,0.00096999,120]
[343024500,1732293045463,-584.32,0.00096999,120]
[343024501,1732293045472,-584.32,0.00096999,120]
[343024502,1732293045482,-544.46,0.00096999,120]
[343024503,1732293045492,-544.46,0.00096999,120]
[343024504,1732293045501,-10604.50135775,0.00096999,120]
[343024505,1732293045511,-500.0,0.00096999,120]
[343024506,1732293045520,-500.0,0.00096999,120]
[343024508,1732293045530,-3573.07412203,0.00097,120]
[343024510,1732293045539,-620719.10182874,0.00097,120]
[343024514,1732293045602,-37194.752,0.00097,120]
[343024515,1732293045613,-389.68556241,0.00097,120]
[343024517,1732293045672,-250.0,0.00059799,120]
[343024519,1732293045682,-500.0,0.00059799,120]
[343024520,1732293045692,-140.90712876,0.00059799,120]
[343024521,1732293045704,-609.09287124,0.00059799,120]
[343024522,1732293045713,-750.0,0.00059799,120]
[343024523,1732293045723,-500.0,0.0009315,120]
[343024524,1732293045732,-327.32,0.0009315,120]
[343024525,1732293045741,-500.0,0.0009315,120]
[343024526,1732293045750,-500.0,0.0009315,120]
[343024527,1732293045760,-193657.3348157,0.00097,120]
[343024528,1732293045772,-291.15119334,0.00097,120]
[343024529,1732293045813,-5735.35105391,0.00097,120]
[343024530,1732293045825,-1279.79094457,0.00097,120]
[343024531,1732293045836,-807.0062436,0.00097,120]
[343024532,1732293045847,-3395.75,0.00097,120]
[343024533,1732293045858,-136530.07635773,0.00097,120]
[343024534,1732293045868,-88086.43844758,0.00097,120]
[343024535,1732293045905,-785.895,0.000899,120]
[343024536,1732293045916,-205.65985598,0.000899,120]
[343024537,1732293045926,-87.52164403,0.0009315,120]
[343024538,1732293045937,-412.47835597,0.0009315,120]
[343024539,1732293045946,-500.0,0.0009315,120]
[343024540,1732293045955,-500.0,0.0009315,120]
[343024541,1732293045965,-8341.37302655,0.00097,120]
[343024542,1732293045976,-2819.98303553,0.00097,120]
[343024543,1732293045987,-5987.67385568,0.00097,120]
[343024544,1732293045998,-5982.14655479,0.00097,120]
[343024545,1732293046009,-3871.5199935,0.00097,120]
[343024546,1732293046159,-977.25266733,0.00097,120]
[343024547,1732293046171,-372.78046583,0.00097,120]
[343024548,1732293046182,-135022.2996049,0.00097,120]
[343024551,1732293046284,-1992.72802042,0.00097,120]
[343024557,1732293046329,-183.46344597,0.0009315,120]
[343024559,1732293046338,-500.0,0.0009315,120]
[343024561,1732293046348,-259.79,0.0009315,120]
[343024563,1732293046357,-1288.54930055,0.0009315,120]
[343024565,1732293046368,-2085.02069945,0.0009315,120]
[343024567,1732293046377,-1380.44101791,0.0009315,120]
[343024569,1732293046389,-1993.12898209,0.0009315,120]
[343024571,1732293046397,-1549.57917489,0.0009315,120]
[343024580,1732293046470,-594.22160049,0.0009315,120]
[343024582,1732293046487,-1229.76922462,0.0009315,120]
[343024584,1732293046496,-3373.57,0.0009315,120]
[343024586,1732293046505,-68011.65793952,0.00097,120]
[343024589,1732293046516,-1917.02443207,0.00097,120]
[343024591,1732293046526,-15139.87319,0.00097,120]
[343024594,1732293046551,-3061.68293999,0.00097,120]
[343024596,1732293046566,-295168.8006096,0.00097,120]
[343024598,1732293046577,-363246.76521671,0.00097,120]
[343024600,1732293046586,-91724.26197821,0.00097,120]
[343024602,1732293046598,-1477.11237241,0.00097,120]
[343024604,1732293046609,-5436.86534848,0.00097,120]
[343024608,1732293046630,-991.55485598,0.000899,120]
[343024610,1732293046639,-2833.09856231,0.0009315,120]
[343024612,1732293046651,-540.47143769,0.0009315,120]
[343024614,1732293046659,-340.72156231,0.0009315,120]
[343024616,1732293046671,-159.27843769,0.0009315,120]
[343024618,1732293046681,-901361.7603009,0.00097,120]
[343024620,1732293046690,-380936.26207583,0.00097,120]
[343024622,1732293046701,-2291.9,0.00097,120]
[343024624,1732293046712,-509.08,0.00097,120]
[343024626,1732293046723,-86464.6662,0.00097,120]
[343024629,1732293046738,-551.61699996,0.00097,120]
[343024631,1732293046749,-8899.7,0.00097,120]
[343025161,1732293214939,250.0,0.00031,2]
[343025162,1732293216015,300.0,0.00033,2]
[343025163,1732293251081,302.0,0.0003,120]
[343025165,1732293651802,163.6,0.00046935,2]
[343025166,1732293658941,257.5615,0.0004896,120]
[343025167,1732293688098,158.54,0.00041096,2]
[343025169,1732293902021,150.0,0.00034548,10]
[343025170,1732293995179,-656.04896508,0.000519,2]
[343025171,1732293995200,-1696.59144163,0.000519,2]
[343025172,1732293995277,1897.27,0.00051001,2]
[343025173,1732294026109,-1079.53722592,0.000519,2]
[343025174,1732294026129,-700.0,0.00051999,15]
[343025175,1732294026150,-4455.86347086,0.00052,120]
[343025176,1732294026181,-184.85226511,0.00052,120]
[343025177,1732294028148,-539.09205097,0.00052,120]
[343025178,1732294030172,-5820.19221306,0.00052,120]
[343025179,1732294030194,-900.0,0.00052,53]
[343025180,1732294030215,-257.5615,0.0005306,120]
[343025181,1732294030236,-249.2,0.000543,7]
[343025182,1732294030257,-623.0,0.000546,3]
[343025183,1732294030278,-600.0,0.00054772,15]
[343025184,1732294030299,-500.0,0.00054795,120]
[343025185,1732294030320,-279.21,0.00056536,2]
[343025186,1732294030340,-2928.86,0.00057983,2]
[343025187,1732294030361,-2427.35,0.00057988,2]
[343025188,1732294030381,-1030.52250023,0.00058014,30]
[343025189,1732294042129,-778.8589014,0.00057969,2]
[343025190,1732294051142,-845.04759529,0.00057969,2]
[343025195,1732294142102,284.8530088,0.000451,2]
[343025196,1732294145099,-560.0,0.000546,3]
[343025197,1732294145121,-2000.0,0.00056,50]
[343025198,1732294145143,-4973.0,0.00057434,30]
[343025199,1732294145163,-156.74350331,0.00057969,2]
[343025200,1732294145184,-500.0,0.00057976,2]
[343025201,1732294145206,-1000.0,0.0005808,120]
[343025202,1732294145228,-5132.88338327,0.0005808,2]
[343025203,1732294145249,-150.2,0.00058153,120]
[343025204,1732294145273,-9999.99,0.00058153,2]
[343025205,1732294145294,-2868.24,0.00058154,2]
[343025206,1732294145315,-3878.12,0.00058167,2]
[343025207,1732294145335,-764.03,0.00058167,45]
[343025208,1732294145356,-200.0,0.00058194,2]
[343025209,1732294145377,-8136.73472138,0.00058194,2]
[343025210,1732294149114,-1623.88527862,0.00058194,2]
[343025211,1732294149137,-196.85,0.00058207,120]
[343025212,1732294149159,-250.0,0.00058236,120]
[343025213,1732294149180,-180.94,0.00058265,2]
[343025214,1732294149201,-402.23,0.00058295,2]
[343025215,1732294149223,-2000.0,0.00058295,120]
[343025216,1732294149244,-322.25292746,0.0005835,30]
[343025217,1732294159115,-1448.20707254,0.0005835,30]
[343025218,1732294159136,-300.0,0.00058369,9]
[343025219,1732294159157,-670.94806732,0.0005837,2]
[343025220,1732294160132,-328.99993268,0.0005837,2]
[343025221,1732294160163,-3149.84,0.0005838,2]
[343025222,1732294160188,-996.0579777,0.00058399,120]
[343025223,1732294160215,-5602.95,0.00058491,2]
[343025224,1732294160241,-200.0,0.00058521,30]
[343025225,1732294160271,-180.31,0.00058536,2]
[343025226,1732294160302,-1852.42,0.00058561,2]
[343025228,1732294160329,-279.21,0.000588,2]
[343025229,1732294160353,-168.2,0.00058937,2]
[343025230,1732294160382,-151.0,0.00059,120]
[343025231,1732294160411,-4596.98761501,0.00059002,2]
[343025232,1732294162102,-5986.728762,0.00059002,2]
[343025233,1732294167247,-286.81818377,0.00059002,2]
[343025239,1732294232023,-966.85,0.00058859,30]
[343025240,1732294232034,-13029.46543922,0.00059002,2]
[343025241,1732294232043,-168.2,0.0005901,2]
[343025242,1732294232054,-168.2,0.00059084,2]
[343025243,1732294232064,-168.2,0.00059158,2]
[343025244,1732294232074,-168.2,0.00059231,2]
[343025245,1732294232083,-667.79,0.0005939,7]
[343025246,1732294232092,-1100.0,0.000596,21]
[343025247,1732294232102,-185.72,0.00059607,2]
[343025248,1732294232112,-339.90875356,0.00059681,15]
[343025249,1732294232123,-1129.16014282,0.0005969,2]
[343025250,1732294232132,-383.81945199,0.000597,38]
[343025251,1732294232142,-173.382,0.000597,119]
[343025252,1732294232154,-818.832,0.000597,119]
[343025253,1732294232163,-162.87059995,0.000597,8]
[343025254,1732294232172,-2300.0,0.000597,21]
[343025255,1732294232181,-170.54627412,0.000597,78]
[343025256,1732294232190,-629.75,0.0005977,30]
[343025257,1732294232201,-165.22820659,0.00059773,7]
[343025258,1732294232212,-504.76805763,0.00059773,15]
[343025259,1732294232221,-500.0,0.00059779,31]
[343025260,1732294232231,-500.0,0.00059779,31]
[343025261,1732294232241,-523.66498473,0.00059779,31]
[343025262,1732294232249,-49208.68793102,0.0005978,3]
[343025263,1732294232263,-999.948,0.0005978,3]
[343025264,1732294232274,-586.31478919,0.0005978,3]
[343025265,1732294232298,-1671.49877753,0.0005978,3]
[343025266,1732294232310,-587.66878533,0.0005978,3]
[343025267,1732294232321,-82806.74810683,0.0005978,3]
[343025302,1732294240104,-29061.61998447,0.0005978,3]
[343025303,1732294240174,-78886.14449963,0.0005978,3]
[343025304,1732294240202,-155.97,0.0005978,120]
[343025305,1732294240226,-1921.11724463,0.0005978,7]
[343025309,1732294240250,-48878.0,0.00059781,120]
[343025312,1732294240273,-365712.946312,0.0005979,3]
[343025315,1732294240297,-155.97,0.0005979,120]
[343025319,1732294240322,-155.97,0.0005979,120]
[343025322,1732294240344,-1921.11724463,0.0005979,7]
[343025327,1732294240367,-250.0,0.00059797,120]
[343025330,1732294240390,-500.0,0.00059797,120]
[343025333,1732294240415,-750.0,0.00059797,120]
[343025337,1732294240437,-1000.0,0.00059797,120]
[343025340,1732294240460,-1250.0,0.00059797,120]
[343025341,1732294240483,-1395.00328527,0.00059799,120]
[343025342,1732294240506,-1500.0,0.00059799,120]
[343025343,1732294240531,-344.05706227,0.00059799,120]
[343025344,1732294240555,-499999.0,0.000598,120]
[343025345,1732294240581,-499999.0,0.000598,120]
[343025346,1732294240605,-1000.0,0.000598,120]
[343025347,1732294240629,-1000.0,0.000598,120]
[343025348,1732294240655,-493225.70435157,0.000598,120]
[343025350,1732294240926,-932.84999996,0.00058902,2]
[343025351,1732294241149,-1595.91722476,0.00058902,2]
[343025352,1732294241163,-139.18235431,0.000598,120]
[343025353,1732294241181,-3095.07727703,0.000598,120]
[343025354,1732294241198,-214.66419678,0.0005969,31]
[343025355,1732294241207,-3539.03601709,0.000598,120]
[343025356,1732294241216,-499999.0,0.000598,120]
[343025357,1732294241226,-3500.0,0.000598,21]
[343025358,1732294241235,-4700.0,0.000599,21]
[343025359,1732294241245,-2100.0,0.0006,50]
[343025360,1732294241254,-321.19,0.00060605,120]
[343025361,1732294241263,-1075.61,0.00060605,2]
[343025362,1732294241273,-160.05,0.00060605,120]
[343025363,1732294241283,-250.0,0.00060605,120]
[343025364,1732294241293,-500.0,0.00060639,2]
[343025365,1732294241302,-250.0,0.00060921,120]
[343025366,1732294241311,-279.21,0.00061064,2]
[343025367,1732294241321,-1030.27,0.00061124,2]
[343025368,1732294241331,-500.0,0.00061173,120]
[343025369,1732294241340,-150.0,0.00061566,2]
[343025370,1732294241349,-737.289,0.0006236,120]
[343025371,1732294241358,-180.94,0.00062576,2]
[343025372,1732294241367,-4000.0,0.00063014,60]
[343025373,1732294241376,-279.21,0.00063327,2]
[343025374,1732294241384,-339.90875354,0.0006415,15]
[343025375,1732294241394,-151.7,0.00064512,2]
[343025376,1732294241405,-1000.0,0.0006534,120]
[343025377,1732294241414,-279.21,0.00065591,2]
[343025378,1732294241424,-1000.0,0.00065753,120]
[343025379,1732294241434,-1000.0,0.00065753,120]
[343025380,1732294241443,-1000.0,0.00065753,120]
[343025381,1732294241453,-1000.0,0.00065753,120]
[343025382,1732294241569,-1000.0,0.00065753,120]
[343025383,1732294241580,-737.334,0.0006594,120]
[343025384,1732294241590,-499.999999,0.00066,120]
[343025385,1732294241599,-180.94,0.00066888,2]
[343025386,1732294241609,-166.66,0.00067122,2]
[343025387,1732294241618,-279.21,0.00067855,2]
[343025388,1732294241628,-321.19,0.00068181,120]
[343025389,1732294241637,-300.0,0.00068493,120]
[343025390,1732294241647,-339.90875354,0.00068619,15]
[343025391,1732294241663,-737.301,0.0006952,120]
[343025392,1732294241673,-383.81945195,0.0006975,51]
[343025393,1732294241682,-510.0,0.0007,30]
[343025394,1732294241691,-279.21,0.00070119,2]
[343025395,1732294241702,-818.833,0.00072275,120]
[343025396,1732294241711,-279.21,0.00072383,2]
[343025397,1732294241721,-1000.0,0.000726,120]
[343025398,1732294241731,-160.07,0.00072617,120]
[343025399,1732294241742,-150.2,0.0007291,120]
[343025400,1732294241752,-158.54,0.00073059,120]
[343025401,1732294241762,-339.90875354,0.00073087,15]
[343025402,1732294241773,-737.285,0.000731,120]
[343025403,1732294241783,-170.54627411,0.000731,120]
[343025404,1732294241793,-166.6,0.00074195,2]
[343025405,1732294241803,-279.21,0.00074647,2]
[343025406,1732294241812,-321.19,0.00075756,120]
[343025407,1732294241822,-737.245,0.0007668,120]
[343025408,1732294241831,-279.21,0.00076911,2]
[343025409,1732294241841,-339.90875354,0.00077556,15]
[343025410,1732294241850,-166.66,0.000782,2]
[343025411,1732294241859,-279.21,0.00079175,2]
[343025412,1732294241870,-383.81945195,0.000798,64]
[343025413,1732294241880,-1000.0,0.0007986,120]
[343025414,1732294241890,-19915.01680772,0.0008,120]